fUST/lending_fUST_20240825
["ID","MTS","AMOUNT","RATE_DAILY","PERIOD"]
[335860418,1724539842355,-533.48,0.00013698,2]
[335860419,1724539842364,-500.0,0.00013698,2]
[335860420,1724539842374,-530.01,0.00013698,2]
[335860421,1724539842384,-500.0,0.00013698,2]
[335860422,1724539842393,-500.0,0.00013698,2]
[335860423,1724539842403,-500.0,0.00013698,2]
[335860424,1724539842413,-500.0,0.00013698,2]
[335860425,1724539842423,-683.23,0.00013698,2]
[335860426,1724539842432,-680.61,0.00013698,2]
[335860427,1724539842442,-594.61,0.00013698,2]
[335860428,1724539842451,-500.0,0.00013698,2]
[335860429,1724539842460,-596.22,0.00013698,2]
[335860430,1724539842469,-718.39,0.00013698,2]
[335860431,1724539842479,-500.0,0.00013698,2]
[335860432,1724539842488,-500.0,0.00013698,2]
[335860433,1724539842498,-500.0,0.00013698,2]
[335860434,1724539842508,-500.0,0.00013698,2]
[335860435,1724539842517,-500.0,0.00013698,2]
[335860436,1724539842526,-500.0,0.00013698,2]
[335860437,1724539842535,-500.0,0.00013698,2]
[335860438,1724539842545,-534.63057297,0.00013698,2]
[335860439,1724539842554,-500.0,0.00013698,2]
[335860440,1724539842564,-500.0,0.00013698,2]
[335860441,1724539842573,-738.66,0.00013698,2]
[335860442,1724539842583,-500.0,0.00013698,2]
[335860443,1724539842592,-500.0,0.00013698,2]
[335860444,1724539842601,-500.0,0.00013698,2]
[335860445,1724539842611,-500.0,0.00013698,2]
[335860446,1724539842620,-500.0,0.00013698,2]
[335860447,1724539842630,-835.62,0.00013698,2]
[335860449,1724539842640,-500.0,0.00013698,2]
[335860450,1724539842649,-500.0,0.00013698,2]
[335860451,1724539842659,-500.0,0.00013698,2]
[335860452,1724539842669,-500.0,0.00013698,2]
[335860453,1724539842679,-500.0,0.00013698,2]
[335860454,1724539842688,-500.0,0.00013698,2]
[335860455,1724539842697,-500.0,0.00013698,2]
[335860456,1724539842706,-500.0,0.00013698,2]
[335860457,1724539842716,-500.0,0.00013698,2]
[335860458,1724539842725,-500.0,0.00013698,2]
[335860459,1724539842735,-500.0,0.00013698,2]
[335860460,1724539842744,-500.0,0.00013698,2]
[335860461,1724539842754,-500.0,0.00013698,2]
[335860462,1724539842763,-501.26450768,0.00013698,2]
[335860463,1724539842773,-500.0,0.00013698,2]
[335860464,1724539842783,-500.0,0.00013698,2]
[335860466,1724539842793,-500.0,0.00013698,2]
[335860467,1724539842803,-500.0,0.00013698,2]
[335860468,1724539842812,-500.0,0.00013698,2]
[335860469,1724539842822,-500.0,0.00013698,2]
[335860470,1724539842832,-854.55,0.00013698,2]
[335860471,1724539842842,-500.0,0.00013698,2]
[335860472,1724539842851,-500.0,0.00013698,2]
[335860473,1724539842862,-500.0,0.00013698,2]
[335860474,1724539842872,-500.0,0.00013698,2]
[335860475,1724539842882,-654.2,0.00013698,2]
[335860476,1724539842891,-500.0,0.00013698,2]
[335860477,1724539842902,-512.44720167,0.00013698,2]
[335860478,1724539842912,-500.0,0.00013698,2]
[335860479,1724539842924,-500.0,0.00013698,2]
[335860481,1724539842934,-500.0,0.00013698,2]
[335860482,1724539842944,-718.96,0.00013698,2]
[335860483,1724539842953,-500.0,0.00013698,2]
[335860484,1724539842963,-500.0,0.00013698,2]
[335860485,1724539842973,-500.0,0.00013698,2]
[335860486,1724539842984,-698.64,0.00013698,2]
[335860487,1724539842994,-737.25,0.00013698,2]
[335860488,1724539843004,-500.0,0.00013698,2]
[335860489,1724539843014,-500.0,0.00013698,2]
[335860490,1724539843023,-500.0,0.00013698,2]
[335860491,1724539843033,-500.0,0.00013698,2]
[335860492,1724539843042,-500.0,0.00013698,2]
[335860494,1724539843052,-500.0,0.00013698,2]
[335860495,1724539843061,-500.0,0.00013698,2]
[335860497,1724539843070,-138.84182898,0.00013698,2]
[335860500,1724539843407,-361.15817102,0.00013698,2]
[335860501,1724539843416,-500.0,0.00013698,2]
[335860502,1724539843426,-500.0,0.00013698,2]
[335860503,1724539843437,-500.0,0.00013698,2]
[335860504,1724539843445,-700.06,0.00013698,2]
[335860505,1724539843455,-500.0,0.00013698,2]
[335860506,1724539843464,-500.0,0.00013698,2]
[335860507,1724539843474,-500.0,0.00013698,2]
[335860508,1724539843484,-500.0,0.00013698,2]
[335860510,1724539843494,-500.0,0.00013698,2]
[335860512,1724539843503,-500.0,0.00013698,2]
[335860514,1724539843513,-500.0,0.00013698,2]
[335860516,1724539843522,-500.0,0.00013698,2]
[335860518,1724539843531,-643.7,0.00013698,2]
[335860520,1724539843541,-500.24198974,0.00013698,2]
[335860522,1724539843550,-500.0,0.00013698,2]
[335860524,1724539843560,-727.51,0.00013698,2]
[335860525,1724539843569,-500.0,0.00013698,2]
[335860526,1724539843579,-500.0,0.00013698,2]
[335860527,1724539843589,-500.0,0.00013698,2]
[335860528,1724539843599,-500.0,0.00013698,2]
[335860529,1724539843608,-500.0,0.00013698,2]
[335860530,1724539843618,-840.37,0.00013698,2]
[335860531,1724539843628,-500.0,0.00013698,2]
[335860532,1724539843638,-500.0,0.00013698,2]
[335860533,1724539843647,-500.0,0.00013698,2]
[335860534,1724539843657,-25.00461504,0.00013698,2]
[335860535,1724539844199,-8865.42864472,0.00013597,2]
[335860536,1724539844209,-200.32057347,0.00013673,2]
[335860537,1724539844219,-500.0,0.00013673,2]
[335860538,1724539844230,-474.99538496,0.00013698,2]
[335860539,1724539844240,-500.0,0.00013698,2]
[335860540,1724539844249,-500.0,0.00013698,2]
[335860542,1724539844259,-500.0,0.00013698,2]
[335860543,1724539844267,-553.87,0.00013698,2]
[335860545,1724539844277,-711.95,0.00013698,2]
[335860546,1724539844286,-500.0,0.00013698,2]
[335860547,1724539844295,-731.41,0.00013698,2]
[335860548,1724539844304,-500.0,0.00013698,2]
[335860549,1724539844314,-516.55611504,0.00013698,2]
[335860550,1724539844323,-767.67,0.00013698,2]
[335860551,1724539844333,-594.73,0.00013698,2]
[335860552,1724539844342,-500.0,0.00013698,2]
[335860553,1724539844352,-500.0,0.00013698,2]
[335860554,1724539844361,-500.0,0.00013698,2]
[335860555,1724539844370,-500.0,0.00013698,2]
[335860556,1724539844379,-575.95,0.00013698,2]
[335860557,1724539844389,-500.0,0.00013698,2]
[335860558,1724539844398,-500.0,0.00013698,2]
[335860559,1724539844407,-500.0,0.00013698,2]
[335860560,1724539844415,-500.0,0.00013698,2]
[335860561,1724539844424,-500.0,0.00013698,2]
[335860562,1724539844435,-750.75,0.00013698,2]
[335860563,1724539844444,-500.0,0.00013698,2]
[335860564,1724539844454,-500.0,0.00013698,2]
[335860565,1724539844522,-500.0,0.00013698,2]
[335860566,1724539844532,-564.57,0.00013698,2]
[335860567,1724539844543,-896.98,0.00013698,2]
[335860568,1724539844553,-509.51694536,0.00013698,2]
[335860569,1724539844564,-500.0,0.00013698,2]
[335860570,1724539844573,-500.0,0.00013698,2]
[335860571,1724539844583,-505.24701066,0.00013698,2]
[335860572,1724539844593,-500.0,0.00013698,2]
[335860573,1724539844602,-500.0,0.00013698,2]
[335860574,1724539844612,-500.0,0.00013698,2]
[335860575,1724539844621,-500.0,0.00013698,2]
[335860576,1724539844630,-500.0,0.00013698,2]
[335860577,1724539844641,-500.0,0.00013698,2]
[335860578,1724539844650,-500.0,0.00013698,2]
[335860579,1724539844661,-500.0,0.00013698,2]
[335860580,1724539844674,-500.0,0.00013698,2]
[335860581,1724539844685,-500.0,0.00013698,2]
[335860582,1724539844695,-500.0,0.00013698,2]
[335860583,1724539844706,-500.0,0.00013698,2]
[335860584,1724539844716,-500.57804816,0.00013698,2]
[335860585,1724539844726,-500.0,0.00013698,2]
[335860586,1724539844736,-500.0,0.00013698,2]
[335860587,1724539844745,-500.0,0.00013698,2]
[335860588,1724539844755,-500.0,0.00013698,2]
[335860589,1724539844764,-500.0,0.00013698,2]
[335860590,1724539844773,-881.52,0.00013698,2]
[335860591,1724539844782,-500.0,0.00013698,2]
[335860592,1724539844791,-500.0,0.00013698,2]
[335860593,1724539844800,-500.0,0.00013698,2]
[335860594,1724539844809,-543.27,0.00013698,2]
[335860595,1724539844818,-650.33,0.00013698,2]
[335860596,1724539844827,-500.0,0.00013698,2]
[335860597,1724539844836,-500.0,0.00013698,2]
[335860598,1724539844845,-500.0,0.00013698,2]
[335860599,1724539844854,-500.0,0.00013698,2]
[335860600,1724539844864,-500.0,0.00013698,2]
[335860601,1724539844873,-500.0,0.00013698,2]
[335860602,1724539844883,-568.21022219,0.00013698,2]
[335860603,1724539844892,-500.0,0.00013698,2]
[335860604,1724539844901,-500.0,0.00013698,2]
[335860605,1724539844910,-500.0,0.00013698,2]
[335860606,1724539844919,-500.0,0.00013698,2]
[335860607,1724539844929,-500.0,0.00013698,2]
[335860608,1724539844939,-500.0,0.00013698,2]
[335860609,1724539844948,-500.0,0.00013698,2]
[335860610,1724539844957,-500.0,0.00013698,2]
[335860611,1724539844966,-500.0,0.00013698,2]
[335860612,1724539844976,-500.0,0.00013698,2]
[335860613,1724539844986,-500.0,0.00013698,2]
[335860614,1724539844995,-500.0,0.00013698,2]
[335860615,1724539845005,-500.0,0.00013698,2]
[335860616,1724539845014,-500.0,0.00013698,2]
[335860617,1724539845023,-500.0,0.00013698,2]
[335860618,1724539845032,-500.0,0.00013698,2]
[335860619,1724539845041,-500.0,0.00013698,2]
[335860620,1724539845050,-500.0,0.00013698,2]
[335860621,1724539845060,-500.0,0.00013698,2]
[335860622,1724539845070,-500.0,0.00013698,2]
[335860623,1724539845079,-500.0,0.00013698,2]
[335860624,1724539845089,-500.0,0.00013698,2]
[335860625,1724539845102,-500.0,0.00013698,2]
[335860626,1724539845112,-500.0,0.00013698,2]
[335860627,1724539845121,-678.0,0.00013698,2]
[335860628,1724539845130,-500.0,0.00013698,2]
[335860629,1724539845141,-500.0,0.00013698,2]
[335860630,1724539845150,-500.0,0.00013698,2]
[335860631,1724539845159,-500.0,0.00013698,2]
[335860632,1724539845171,-500.0,0.00013698,2]
[335860633,1724539845180,-500.0,0.00013698,2]
[335860634,1724539845189,-500.0,0.00013698,2]
[335860635,1724539845199,-500.0,0.00013698,2]
[335860636,1724539845208,-500.0,0.00013698,2]
[335860637,1724539845217,-500.0,0.00013698,2]
[335860638,1724539845227,-500.0,0.00013698,2]
[335860639,1724539845236,-500.0,0.00013698,2]
[335860640,1724539845245,-500.0,0.00013698,2]
[335860641,1724539845255,-500.0,0.00013698,2]
[335860642,1724539845263,-476.6903179,0.00013698,2]
[335860643,1724539845273,-500.0,0.00013698,2]
[335860644,1724539845282,-500.0,0.00013698,2]
[335860645,1724539845292,-513.84,0.00013698,2]
[335860646,1724539845301,-500.0,0.00013698,2]
[335860647,1724539845310,-767.79,0.00013698,2]
[335860648,1724539845319,-500.0,0.00013698,2]
[335860649,1724539845329,-500.0,0.00013698,2]
[335860650,1724539845339,-500.0,0.00013698,2]
[335860651,1724539845347,-500.0,0.00013698,2]
[335860652,1724539845357,-500.0,0.00013698,2]
[335860653,1724539845365,-630.45,0.00013698,2]
[335860654,1724539845375,-500.0,0.00013698,2]
[335860655,1724539845384,-500.0,0.00013698,2]
[335860656,1724539845393,-500.0,0.00013698,2]
[335860657,1724539845403,-686.18,0.00013698,2]
[335860658,1724539845413,-500.0,0.00013698,2]
[335860659,1724539845425,-500.55,0.00013698,2]
[335860660,1724539845434,-500.0,0.00013698,2]
[335860661,1724539845444,-500.0,0.00013698,2]
[335860662,1724539845453,-4246.52,0.00013698,2]
[335860663,1724539845463,-500.0,0.00013698,2]
[335860664,1724539845472,-500.0,0.00013698,2]
[335860665,1724539845483,-1094.16,0.00013698,2]
[335860666,1724539845494,-1094.16,0.00013698,2]
[335860667,1724539845503,-1094.16,0.00013698,2]
[335860668,1724539845512,-1094.16,0.00013698,2]
[335860669,1724539845521,-1094.16,0.00013698,2]
[335860670,1724539845531,-1094.16,0.00013698,2]
[335860671,1724539845540,-1094.16,0.00013698,2]
[335860672,1724539845549,-1094.16,0.00013698,2]
[335860673,1724539845558,-500.0,0.00013698,2]
[335860674,1724539845567,-1094.16,0.00013698,2]
[335860675,1724539845576,-1094.16,0.00013698,2]
[335860676,1724539845585,-1094.16,0.00013698,2]
[335860678,1724539845594,-500.0,0.00013698,2]
[335860679,1724539845604,-1094.16,0.00013698,2]
[335860680,1724539845613,-1094.16,0.00013698,2]
[335860681,1724539845622,-1094.16,0.00013698,2]
[335860682,1724539845632,-1094.16,0.00013698,2]
[335860683,1724539845643,-1094.16,0.00013698,2]
[335860684,1724539845654,-500.0,0.00013698,2]
[335860685,1724539845667,-1094.16,0.00013698,2]
[335860686,1724539845677,-500.0,0.00013698,2]
[335860688,1724539845686,-1094.16,0.00013698,2]
[335860690,1724539845696,-1094.16,0.00013698,2]
[335860691,1724539845705,-1094.16,0.00013698,2]
[335860693,1724539845715,-1094.16,0.00013698,2]
[335860694,1724539845725,-1094.16,0.00013698,2]
[335860695,1724539845734,-1094.16,0.00013698,2]
[335860696,1724539845743,-1094.35987016,0.00013698,2]
[335860697,1724539845752,-500.0,0.00013698,2]
[335860698,1724539845761,-500.0,0.00013698,2]
[335860699,1724539845771,-500.0,0.00013698,2]
[335860700,1724539845780,-962.33,0.00013698,2]
[335860701,1724539845790,-934.14,0.00013698,2]
[335860702,1724539845801,-500.0,0.00013698,2]
[335860704,1724539845811,-500.0,0.00013698,2]
[335860706,1724539845822,-150.0,0.00013698,2]
[335860707,1724539845832,-500.0,0.00013698,2]
[335860708,1724539845842,-500.0,0.00013698,2]
[335860709,1724539845852,-500.0,0.00013698,2]
[335860710,1724539845862,-502.89244034,0.00013698,2]
[335860712,1724539845871,-500.0,0.00013698,2]
[335860714,1724539845880,-500.0,0.00013698,2]
[335860716,1724539845890,-248.57892849,0.00013698,2]
[335860718,1724539845899,-500.0,0.00013698,2]
[335860719,1724539845909,-706.91,0.00013698,2]
[335860720,1724539845919,-1060.65,0.00013698,2]
[335860721,1724539845930,-500.0,0.00013698,2]
[335860722,1724539845939,-530.24,0.00013698,2]
[335860723,1724539845949,-500.0,0.00013698,2]
[335860725,1724539845959,-768.74,0.00013698,2]
[335860727,1724539845970,-822.44,0.00013698,2]
[335860729,1724539845983,-500.0,0.00013698,2]
[335860730,1724539845994,-762.95,0.00013698,2]
[335860731,1724539846003,-755.96,0.00013698,2]
[335860732,1724539846012,-640.01,0.00013698,2]
[335860733,1724539846022,-500.0,0.00013698,2]
[335860734,1724539846031,-500.0,0.00013698,2]
[335860735,1724539846041,-500.0,0.00013698,2]
[335860737,1724539846050,-500.0,0.00013698,2]
[335860739,1724539846059,-298.95432508,0.00013698,2]
[335860741,1724539846068,-500.0,0.00013698,2]
[335860743,1724539846078,-500.0,0.00013698,2]
[335860745,1724539846087,-500.0,0.00013698,2]
[335860746,1724539846100,-182.049459,0.00013698,2]
[335860747,1724539846110,-500.0,0.00013698,2]
[335860748,1724539846120,-182.049459,0.00013698,2]
[335860749,1724539846129,-182.049459,0.00013698,2]
[335860750,1724539846139,-182.049459,0.00013698,2]
[335860751,1724539846148,-182.049459,0.00013698,2]
[335860752,1724539846157,-500.0,0.00013698,2]
[335860753,1724539846167,-182.049459,0.00013698,2]
[335860754,1724539846179,-895.27,0.00013698,2]
[335860755,1724539846189,-500.0,0.00013698,2]
[335860756,1724539846198,-182.049459,0.00013698,2]
[335860757,1724539846208,-500.0,0.00013698,2]
[335860758,1724539846217,-1578.32,0.00013698,2]
[335860759,1724539846227,-182.049459,0.00013698,2]
[335860760,1724539846236,-182.049459,0.00013698,2]
[335860761,1724539846245,-182.049459,0.00013698,2]
[335860762,1724539846254,-182.049459,0.00013698,2]
[335860763,1724539846264,-182.049459,0.00013698,2]
[335860764,1724539846273,-182.049459,0.00013698,2]
[335860765,1724539846283,-182.049457,0.00013698,2]
[335860766,1724539846293,-500.0,0.00013698,2]
[335860767,1724539846303,-500.0,0.00013698,2]
[335860768,1724539846313,-1176.52,0.00013698,2]
[335860769,1724539846322,-874.8,0.00013698,2]
[335860770,1724539846332,-661.76,0.00013698,2]
[335860771,1724539846342,-500.0,0.00013698,2]
[335860772,1724539846353,-741.65,0.00013698,2]
[335860773,1724539846364,-500.0,0.00013698,2]
[335860774,1724539846374,-538.66026253,0.00013698,2]
[335860775,1724539846384,-500.0,0.00013698,2]
[335860776,1724539846393,-853.54,0.00013698,2]
[335860777,1724539846403,-5565.76,0.00013698,2]
[335860778,1724539846412,-2920.35,0.00013698,2]
[335860779,1724539846421,-500.0,0.00013698,2]
[335860780,1724539846430,-546.09,0.00013698,2]
[335860781,1724539846440,-500.0,0.00013698,2]
[335860782,1724539846449,-500.0,0.00013698,2]
[335860783,1724539846459,-805.77,0.00013698,2]
[335860784,1724539846468,-500.0,0.00013698,2]
[335860785,1724539846481,-500.0,0.00013698,2]
[335860786,1724539846493,-500.0,0.00013698,2]
[335860787,1724539846503,-500.0,0.00013698,2]
[335860788,1724539846514,-500.0,0.00013698,2]
[335860789,1724539846526,-500.0,0.00013698,2]
[335860790,1724539846537,-500.0,0.00013698,2]
[335860791,1724539846547,-763.18,0.00013698,2]
[335860792,1724539846560,-500.0,0.00013698,2]
[335860793,1724539846570,-500.0,0.00013698,2]
[335860794,1724539846579,-500.0,0.00013698,2]
[335860795,1724539846588,-500.0,0.00013698,2]
[335860796,1724539846598,-500.0,0.00013698,2]
[335860797,1724539846608,-5837.41,0.00013698,2]
[335860798,1724539846618,-500.0,0.00013698,2]
[335860799,1724539846627,-500.0,0.00013698,2]
[335860800,1724539846637,-500.0,0.00013698,2]
[335860801,1724539846647,-500.0,0.00013698,2]
[335860802,1724539846656,-500.0,0.00013698,2]
[335860803,1724539846666,-500.0,0.00013698,2]
[335860804,1724539846676,-500.0,0.00013698,2]
[335860805,1724539846687,-500.0,0.00013698,2]
[335860806,1724539846699,-500.0,0.00013698,2]
[335860807,1724539846709,-500.0,0.00013698,2]
[335860808,1724539846719,-339.13339805,0.00013698,2]
[335860809,1724539846731,-897.88,0.00013698,2]
[335860810,1724539846741,-500.0,0.00013698,2]
[335860811,1724539846751,-500.0,0.00013698,2]
[335860812,1724539846762,-611.67,0.00013698,2]
[335860813,1724539846772,-500.0,0.00013698,2]
[335860814,1724539846782,-6896.74,0.00013698,2]
[335860815,1724539846791,-325.22299602,0.00013698,2]
[335860816,1724539846800,-500.0,0.00013698,2]
[335860817,1724539846810,-502.22111403,0.00013698,2]
[335860818,1724539846820,-255.02287104,0.00013698,2]
[335860819,1724539846829,-689.6,0.00013698,2]
[335860820,1724539846839,-500.0,0.00013698,2]
[335860821,1724539846850,-500.0,0.00013698,2]
[335860822,1724539846861,-500.0,0.00013698,2]
[335860823,1724539846870,-500.0,0.00013698,2]
[335860824,1724539846880,-881.02,0.00013698,2]
[335860825,1724539846891,-46676.15,0.00013698,2]
[335860826,1724539846902,-523.9,0.00013698,2]
[335860827,1724539846913,-637.96,0.00013698,2]
[335860828,1724539846923,-500.0,0.00013698,2]
[335860829,1724539846943,-588.09,0.00013698,2]
[335860830,1724539846953,-500.0,0.00013698,2]
[335860831,1724539846965,-559.36,0.00013698,2]
[335860832,1724539846975,-500.0,0.00013698,2]
[335860833,1724539846985,-500.0,0.00013698,2]
[335860834,1724539846995,-965.13,0.00013698,2]
[335860835,1724539847005,-500.0,0.00013698,2]
[335860836,1724539847015,-501.64,0.00013698,2]
[335860837,1724539847026,-1145.75,0.00013698,2]
[335860838,1724539847036,-823.85,0.00013698,2]
[335860839,1724539847046,-728.77,0.00013698,2]
[335860840,1724539847056,-802.38,0.00013698,2]
[335860841,1724539847067,-557.09,0.00013698,2]
[335860842,1724539847077,-594.56,0.00013698,2]
[335860843,1724539847087,-586.91,0.00013698,2]
[335860844,1724539847103,-939.3,0.00013698,2]
[335860845,1724539847113,-500.0,0.00013698,2]
[335860846,1724539847124,-838.29,0.00013698,2]
[335860847,1724539847136,-5698.43,0.00013698,2]
[335860848,1724539847145,-500.0,0.00013698,2]
[335860849,1724539847155,-770.75,0.00013698,2]
[335860850,1724539847167,-901.51,0.00013698,2]
[335860851,1724539847181,-823.68,0.00013698,2]
[335860852,1724539847191,-500.0,0.00013698,2]
[335860853,1724539847201,-500.0,0.00013698,2]
[335860854,1724539847211,-500.0,0.00013698,2]
[335860855,1724539847221,-500.0,0.00013698,2]
[335860856,1724539847230,-500.0,0.00013698,2]
[335860857,1724539847240,-500.0,0.00013698,2]
[335860858,1724539847250,-500.0,0.00013698,2]
[335860859,1724539847260,-616.74,0.00013698,2]
[335860860,1724539847270,-500.0,0.00013698,2]
[335860861,1724539847283,-805.16,0.00013698,2]
[335860862,1724539847295,-500.0,0.00013698,2]
[335860863,1724539847306,-500.0,0.00013698,2]
[335860864,1724539847316,-500.0,0.00013698,2]
[335860865,1724539847328,-500.0,0.00013698,2]
[335860866,1724539847339,-500.0,0.00013698,2]
[335860867,1724539847352,-500.0,0.00013698,2]
[335860868,1724539847362,-500.0,0.00013698,2]
[335860869,1724539847373,-691.59,0.00013698,2]
[335860870,1724539847385,-630.98,0.00013698,2]
[335860871,1724539847396,-621.55,0.00013698,2]
[335860872,1724539847407,-500.0,0.00013698,2]
[335860873,1724539847417,-601.84,0.00013698,2]
[335860874,1724539847429,-500.0,0.00013698,2]
[335860875,1724539847439,-689.92,0.00013698,2]
[335860876,1724539847449,-792.08,0.00013698,2]
[335860877,1724539847459,-649.97,0.00013698,2]
[335860878,1724539847470,-609.33,0.00013698,2]
[335860879,1724539847480,-500.0,0.00013698,2]
[335860880,1724539847490,-1142.86,0.00013698,2]
[335860881,1724539847501,-1528.72,0.00013698,2]
[335860882,1724539847511,-597.81471668,0.00013698,2]
[335860883,1724539847522,-500.0,0.00013698,2]
[335860884,1724539847532,-500.0,0.00013698,2]
[335860885,1724539847543,-857.11,0.00013698,2]
[335860886,1724539847553,-500.0,0.00013698,2]
[335860887,1724539847564,-500.0,0.00013698,2]
[335860888,1724539847575,-814.15,0.00013698,2]
[335860889,1724539847584,-500.0,0.00013698,2]
[335860890,1724539847594,-500.0,0.00013698,2]
[335860891,1724539847604,-643.83,0.00013698,2]
[335860892,1724539847614,-738.45,0.00013698,2]
[335860893,1724539847624,-608.51,0.00013698,2]
[335860894,1724539847634,-542.81,0.00013698,2]
[335860895,1724539847644,-500.0,0.00013698,2]
[335860896,1724539847654,-500.0,0.00013698,2]
[335860897,1724539847667,-500.0,0.00013698,2]
[335860898,1724539847677,-5636.66,0.00013698,2]
[335860899,1724539847687,-500.0,0.00013698,2]
[335860900,1724539847697,-500.0,0.00013698,2]
[335860901,1724539847706,-500.0,0.00013698,2]
[335860902,1724539847716,-627.85,0.00013698,2]
[335860903,1724539847726,-383.87172621,0.00013698,2]
[335860904,1724539847736,-464.28113837,0.00013698,2]
[335860905,1724539847746,-500.0,0.00013698,2]
[335860906,1724539847757,-737.66,0.00013698,2]
[335860907,1724539847766,-500.0,0.00013698,2]
[335860908,1724539847777,-766.31,0.00013698,2]
[335860909,1724539847790,-500.0,0.00013698,2]
[335860910,1724539847802,-500.0,0.00013698,2]
[335860911,1724539847811,-12650.97,0.00013698,2]
[335860912,1724539847822,-502.04300891,0.00013698,2]
[335860913,1724539847834,-500.0,0.00013698,2]
[335860914,1724539847845,-500.0,0.00013698,2]
[335860915,1724539847858,-500.0,0.00013698,2]
[335860916,1724539847869,-1278.36,0.00013698,2]
[335860917,1724539847880,-500.0,0.00013698,2]
[335860918,1724539847892,-500.0,0.00013698,2]
[335860919,1724539847902,-500.0,0.00013698,2]
[335860920,1724539847915,-500.0,0.00013698,2]
[335860921,1724539847927,-500.0,0.00013698,2]
[335860922,1724539847938,-512.63,0.00013698,2]
[335860923,1724539847949,-887.04,0.00013698,2]
[335860924,1724539847960,-859.33,0.00013698,2]
[335860925,1724539847970,-650.64,0.00013698,2]
[335860926,1724539847982,-2239.43,0.00013698,2]
[335860927,1724539847994,-517.36,0.00013698,2]
[335860928,1724539848005,-500.0,0.00013698,2]
[335860929,1724539848015,-853.03,0.00013698,2]
[335860930,1724539848025,-500.0,0.00013698,2]
[335860931,1724539848035,-500.0,0.00013698,2]
[335860932,1724539848046,-500.0,0.00013698,2]
[335860933,1724539848056,-500.0,0.00013698,2]
[335860934,1724539848066,-785.18,0.00013698,2]
[335860935,1724539848075,-504.05,0.00013698,2]
[335860936,1724539848085,-785.62,0.00013698,2]
[335860937,1724539848097,-500.0,0.00013698,2]
[335860938,1724539848107,-6768.83,0.00013698,2]
[335860939,1724539848117,-500.0,0.00013698,2]
[335860940,1724539848127,-2045.15,0.00013698,2]
[335860941,1724539848139,-500.0,0.00013698,2]
[335860942,1724539848149,-500.0,0.00013698,2]
[335860943,1724539848158,-513.1,0.00013698,2]
[335860944,1724539848170,-500.0,0.00013698,2]
[335860945,1724539848183,-500.0,0.00013698,2]
[335860946,1724539848193,-837.99,0.00013698,2]
[335860947,1724539848204,-500.0,0.00013698,2]
[335860948,1724539848214,-500.0,0.00013698,2]
[335860949,1724539848225,-500.0,0.00013698,2]
[335860950,1724539848234,-593.17,0.00013698,2]
[335860951,1724539848245,-510.76,0.00013698,2]
[335860952,1724539848255,-2955.39,0.00013698,2]